{"text_format":"3","workbook":"xlsx","n_sheets":2,"sheets":["Журнал снижения веса","расчеты"],"not_rendered":{"charts":1,"defined_names":10},"read":"whole","date_system":"1900"}

{"sheet":"Журнал снижения веса","index":0,"n_rows":19,"n_cols":9,"rows_kept":19,"merged":[[0,4,0,7],[0,8,0,9],[1,3,2,9]]}
[null,"ЦЕЛЬ ПО ВЕСУ","ПРЕДСТАВЛЕНИЕ ДИАГРАММЫ",null,"Мария Маслова",{"$nulls":3},"ЖУРНАЛ ПОТЕРИ"]
[{"$nulls":3},"ВЕСА"]
[null,{"v":172,"d":"172.0"},"ЕЖЕНЕДЕЛЬНО"]
[null,"ПОКАЗАТЬ ЦЕЛЬ ПО ВЕСУ","Да"]
[null,"В этой ячейке находится диаграмма контроля веса, отслеживающая текущий вес. В ячейке C4 выберите \"Да\", чтобы показать график целевого веса в диаграмме с областями."]
[]
[null,"ДАТА","СНИЖЕНИЕ"]
[null,{"$f":"TODAY()-77","v":"2023-01-12"},{"v":176,"d":"176.0"}]
[null,{"$f":"TODAY()-70","v":"2023-01-19"},{"v":176,"d":"176.0"}]
[null,{"$f":"TODAY()-63","v":"2023-01-26"},177.6]
[null,{"$f":"TODAY()-56","v":"2023-02-02"},176.5]
[null,{"$f":"TODAY()-49","v":"2023-02-09"},176.1]
[null,{"$f":"TODAY()-42","v":"2023-02-16"},{"v":174,"d":"174.0"}]
[null,{"$f":"TODAY()-35","v":"2023-02-23"},173.5]
[null,{"$f":"TODAY()-28","v":"2023-03-02"},{"v":173,"d":"173.0"}]
[null,{"$f":"TODAY()-21","v":"2023-03-09"},{"v":172,"d":"172.0"}]
[null,{"$f":"TODAY()-14","v":"2023-03-16"},{"v":172,"d":"172.0"}]
[null,{"$f":"TODAY()-7","v":"2023-03-23"},{"v":173,"d":"173.0"}]
[null,{"$f":"TODAY()","v":"2023-03-30"},{"v":172,"d":"172.0"}]

{"sheet":"расчеты","index":1,"n_rows":107,"n_cols":17,"rows_kept":107,"hidden":true}
["*** Этот лист должен оставаться скрытым ***"]
[]
[{"$f":"COUNTIF(A5:A107,FALSE)","v":12},"Периоды","Значения",{"$nulls":3},{"$f":"COUNTIF(H5:H28,\">\"&0)","v":3},"Периоды",null,"Значения"]
[null,"Неделя",null,null,{"$f":"IFERROR(IF(ОтображениеЦелиВеса=\"Да\", TRUE, FALSE),FALSE)","v":true},null,null,"Месяц","Конец месяца"]
[{"$f":"FALSE","v":false},{"$f":"IFERROR(IF(LEN('Журнал снижения веса'!$B8)=0,TODAY(),'Журнал снижения веса'!$B8),TODAY())","v":"2023-01-12"},{"$f":"IFERROR(IF(LEN('Журнал снижения веса'!$C8)=0,ЦельВеса,'Журнал снижения веса'!$C8),0)","v":176},{"$f":"IFERROR(IF(MIN(ПериодыДиаграммы)=0,TODAY(),MIN(ПериодыДиаграммы)),TODAY())","v":"2023-01-12"},{"$f":"IFERROR(IF($A$5,0,IF($E$4,ЦельВеса,NA())),0)","v":172},null,null,{"$f":"IFERROR(IF($A$5,TODAY(),DATE(YEAR($B5),MONTH($B5),1)),\"\")","v":"2023-01-01"},{"$f":"IFERROR(IF($A$5,TODAY(),EOMONTH($H5,0)),\"\")","v":"2023-01-31"},{"$f":"IFERROR(IF($A$5,0,AVERAGEIFS(Вес[СНИЖЕНИЕ],Вес[ДАТА],\">=\"&$H5,Вес[ДАТА],\"<=\"&$I5)),NA())","v":176.53333333333333}]
[{"$f":"IF((LEN('Журнал снижения веса'!$C9)=0),TRUE)","v":false},{"$f":"IFERROR(IF(A6,0,IF(LEN('Журнал снижения веса'!$B9)=0,0,'Журнал снижения веса'!$B9)),\"\")","v":"2023-01-19"},{"$f":"IFERROR(IF(A6,0,IF(LEN('Журнал снижения веса'!$C9)=0,0,'Журнал снижения веса'!$C9)),\"\")","v":176},{"$f":"IFERROR(IF(MAX(ПериодыДиаграммы)=0,TODAY(),MAX(ПериодыДиаграммы)),TODAY())","v":"2023-03-30"},{"$f":"IFERROR(IF($A$5,0,IF($E$4,ЦельВеса,NA())),0)","v":172},null,null,{"$f":"IF($I5+1>MAX($B:$B),NA(),$I5+1)","v":"2023-02-01"},{"$f":"EOMONTH($H6,0)","v":"2023-02-28"},{"$f":"IFERROR(AVERAGEIFS(Вес[СНИЖЕНИЕ],Вес[ДАТА],\">=\"&$H6,Вес[ДАТА],\"<=\"&$I6),NA())","v":175.025}]
[{"$f":"IF((LEN('Журнал снижения веса'!$C10)=0),TRUE)","v":false},{"$f":"IFERROR(IF(A7,0,IF(LEN('Журнал снижения веса'!$B10)=0,0,'Журнал снижения веса'!$B10)),\"\")","v":"2023-01-26"},{"$f":"IFERROR(IF(A7,0,IF(LEN('Журнал снижения веса'!$C10)=0,0,'Журнал снижения веса'!$C10)),\"\")","v":177.6},{"$nulls":4},"2023-03-01","2023-03-31",{"$f":"IFERROR(AVERAGEIFS(Вес[СНИЖЕНИЕ],Вес[ДАТА],\">=\"&$H7,Вес[ДАТА],\"<=\"&$I7),NA())","v":172.4}]
[{"$f":"IF((LEN('Журнал снижения веса'!$C11)=0),TRUE)","v":false},{"$f":"IFERROR(IF(A8,0,IF(LEN('Журнал снижения веса'!$B11)=0,0,'Журнал снижения веса'!$B11)),\"\")","v":"2023-02-02"},{"$f":"IFERROR(IF(A8,0,IF(LEN('Журнал снижения веса'!$C11)=0,0,'Журнал снижения веса'!$C11)),\"\")","v":176.5},{"$nulls":4},{"$error":"#N/A"},{"$error":"#N/A"},{"$f":"IFERROR(AVERAGEIFS(Вес[СНИЖЕНИЕ],Вес[ДАТА],\">=\"&$H8,Вес[ДАТА],\"<=\"&$I8),NA())","v":{"$error":"#N/A"}}]
[{"$f":"IF((LEN('Журнал снижения веса'!$C12)=0),TRUE)","v":false},{"$f":"IFERROR(IF(A9,0,IF(LEN('Журнал снижения веса'!$B12)=0,0,'Журнал снижения веса'!$B12)),\"\")","v":"2023-02-09"},{"$f":"IFERROR(IF(A9,0,IF(LEN('Журнал снижения веса'!$C12)=0,0,'Журнал снижения веса'!$C12)),\"\")","v":176.1},{"$nulls":4},{"$error":"#N/A"},{"$error":"#N/A"},{"$f":"IFERROR(AVERAGEIFS(Вес[СНИЖЕНИЕ],Вес[ДАТА],\">=\"&$H9,Вес[ДАТА],\"<=\"&$I9),NA())","v":{"$error":"#N/A"}}]
[{"$f":"IF((LEN('Журнал снижения веса'!$C13)=0),TRUE)","v":false},{"$f":"IFERROR(IF(A10,0,IF(LEN('Журнал снижения веса'!$B13)=0,0,'Журнал снижения веса'!$B13)),\"\")","v":"2023-02-16"},{"$f":"IFERROR(IF(A10,0,IF(LEN('Журнал снижения веса'!$C13)=0,0,'Журнал снижения веса'!$C13)),\"\")","v":174},{"$nulls":4},{"$error":"#N/A"},{"$error":"#N/A"},{"$f":"IFERROR(AVERAGEIFS(Вес[СНИЖЕНИЕ],Вес[ДАТА],\">=\"&$H10,Вес[ДАТА],\"<=\"&$I10),NA())","v":{"$error":"#N/A"}}]
[{"$f":"IF((LEN('Журнал снижения веса'!$C14)=0),TRUE)","v":false},{"$f":"IFERROR(IF(A11,0,IF(LEN('Журнал снижения веса'!$B14)=0,0,'Журнал снижения веса'!$B14)),\"\")","v":"2023-02-23"},{"$f":"IFERROR(IF(A11,0,IF(LEN('Журнал снижения веса'!$C14)=0,0,'Журнал снижения веса'!$C14)),\"\")","v":173.5},{"$nulls":4},{"$error":"#N/A"},{"$error":"#N/A"},{"$f":"IFERROR(AVERAGEIFS(Вес[СНИЖЕНИЕ],Вес[ДАТА],\">=\"&$H11,Вес[ДАТА],\"<=\"&$I11),NA())","v":{"$error":"#N/A"}},{"$nulls":6},{"$f":"MAX($B:$B)","v":"2023-03-30"}]
[{"$f":"IF((LEN('Журнал снижения веса'!$C15)=0),TRUE)","v":false},{"$f":"IFERROR(IF(A12,0,IF(LEN('Журнал снижения веса'!$B15)=0,0,'Журнал снижения веса'!$B15)),\"\")","v":"2023-03-02"},{"$f":"IFERROR(IF(A12,0,IF(LEN('Журнал снижения веса'!$C15)=0,0,'Журнал снижения веса'!$C15)),\"\")","v":173},{"$nulls":4},{"$error":"#N/A"},{"$error":"#N/A"},{"$f":"IFERROR(AVERAGEIFS(Вес[СНИЖЕНИЕ],Вес[ДАТА],\">=\"&$H12,Вес[ДАТА],\"<=\"&$I12),NA())","v":{"$error":"#N/A"}}]
[{"$f":"IF((LEN('Журнал снижения веса'!$C16)=0),TRUE)","v":false},{"$f":"IFERROR(IF(A13,0,IF(LEN('Журнал снижения веса'!$B16)=0,0,'Журнал снижения веса'!$B16)),\"\")","v":"2023-03-09"},{"$f":"IFERROR(IF(A13,0,IF(LEN('Журнал снижения веса'!$C16)=0,0,'Журнал снижения веса'!$C16)),\"\")","v":172},{"$nulls":4},{"$error":"#N/A"},{"$error":"#N/A"},{"$f":"IFERROR(AVERAGEIFS(Вес[СНИЖЕНИЕ],Вес[ДАТА],\">=\"&$H13,Вес[ДАТА],\"<=\"&$I13),NA())","v":{"$error":"#N/A"}}]
[{"$f":"IF((LEN('Журнал снижения веса'!$C17)=0),TRUE)","v":false},{"$f":"IFERROR(IF(A14,0,IF(LEN('Журнал снижения веса'!$B17)=0,0,'Журнал снижения веса'!$B17)),\"\")","v":"2023-03-16"},{"$f":"IFERROR(IF(A14,0,IF(LEN('Журнал снижения веса'!$C17)=0,0,'Журнал снижения веса'!$C17)),\"\")","v":172},{"$nulls":4},{"$error":"#N/A"},{"$error":"#N/A"},{"$f":"IFERROR(AVERAGEIFS(Вес[СНИЖЕНИЕ],Вес[ДАТА],\">=\"&$H14,Вес[ДАТА],\"<=\"&$I14),NA())","v":{"$error":"#N/A"}}]
[{"$f":"IF((LEN('Журнал снижения веса'!$C18)=0),TRUE)","v":false},{"$f":"IFERROR(IF(A15,0,IF(LEN('Журнал снижения веса'!$B18)=0,0,'Журнал снижения веса'!$B18)),\"\")","v":"2023-03-23"},{"$f":"IFERROR(IF(A15,0,IF(LEN('Журнал снижения веса'!$C18)=0,0,'Журнал снижения веса'!$C18)),\"\")","v":173},{"$nulls":4},{"$error":"#N/A"},{"$error":"#N/A"},{"$f":"IFERROR(AVERAGEIFS(Вес[СНИЖЕНИЕ],Вес[ДАТА],\">=\"&$H15,Вес[ДАТА],\"<=\"&$I15),NA())","v":{"$error":"#N/A"}}]
[{"$f":"IF((LEN('Журнал снижения веса'!$C19)=0),TRUE)","v":false},{"$f":"IFERROR(IF(A16,0,IF(LEN('Журнал снижения веса'!$B19)=0,0,'Журнал снижения веса'!$B19)),\"\")","v":"2023-03-30"},{"$f":"IFERROR(IF(A16,0,IF(LEN('Журнал снижения веса'!$C19)=0,0,'Журнал снижения веса'!$C19)),\"\")","v":172},{"$nulls":4},{"$error":"#N/A"},{"$error":"#N/A"},{"$f":"IFERROR(AVERAGEIFS(Вес[СНИЖЕНИЕ],Вес[ДАТА],\">=\"&$H16,Вес[ДАТА],\"<=\"&$I16),NA())","v":{"$error":"#N/A"}}]
[{"$f":"IF((LEN('Журнал снижения веса'!$C20)=0),TRUE)","v":true},{"$f":"IFERROR(IF(A17,0,IF(LEN('Журнал снижения веса'!$B20)=0,0,'Журнал снижения веса'!$B20)),\"\")","v":"00:00:00"},{"$f":"IFERROR(IF(A17,0,IF(LEN('Журнал снижения веса'!$C20)=0,0,'Журнал снижения веса'!$C20)),\"\")","v":0},{"$nulls":4},{"$error":"#N/A"},{"$error":"#N/A"},{"$f":"IFERROR(AVERAGEIFS(Вес[СНИЖЕНИЕ],Вес[ДАТА],\">=\"&$H17,Вес[ДАТА],\"<=\"&$I17),NA())","v":{"$error":"#N/A"}}]
[{"$f":"IF((LEN('Журнал снижения веса'!$C21)=0),TRUE)","v":true},{"$f":"IFERROR(IF(A18,0,IF(LEN('Журнал снижения веса'!$B21)=0,0,'Журнал снижения веса'!$B21)),\"\")","v":"00:00:00"},{"$f":"IFERROR(IF(A18,0,IF(LEN('Журнал снижения веса'!$C21)=0,0,'Журнал снижения веса'!$C21)),\"\")","v":0},{"$nulls":4},{"$error":"#N/A"},{"$error":"#N/A"},{"$f":"IFERROR(AVERAGEIFS(Вес[СНИЖЕНИЕ],Вес[ДАТА],\">=\"&$H18,Вес[ДАТА],\"<=\"&$I18),NA())","v":{"$error":"#N/A"}}]
[{"$f":"IF((LEN('Журнал снижения веса'!$C22)=0),TRUE)","v":true},{"$f":"IFERROR(IF(A19,0,IF(LEN('Журнал снижения веса'!$B22)=0,0,'Журнал снижения веса'!$B22)),\"\")","v":"00:00:00"},{"$f":"IFERROR(IF(A19,0,IF(LEN('Журнал снижения веса'!$C22)=0,0,'Журнал снижения веса'!$C22)),\"\")","v":0},{"$nulls":4},{"$error":"#N/A"},{"$error":"#N/A"},{"$f":"IFERROR(AVERAGEIFS(Вес[СНИЖЕНИЕ],Вес[ДАТА],\">=\"&$H19,Вес[ДАТА],\"<=\"&$I19),NA())","v":{"$error":"#N/A"}}]
[{"$f":"IF((LEN('Журнал снижения веса'!$C23)=0),TRUE)","v":true},{"$f":"IFERROR(IF(A20,0,IF(LEN('Журнал снижения веса'!$B23)=0,0,'Журнал снижения веса'!$B23)),\"\")","v":"00:00:00"},{"$f":"IFERROR(IF(A20,0,IF(LEN('Журнал снижения веса'!$C23)=0,0,'Журнал снижения веса'!$C23)),\"\")","v":0},{"$nulls":4},{"$error":"#N/A"},{"$error":"#N/A"},{"$f":"IFERROR(AVERAGEIFS(Вес[СНИЖЕНИЕ],Вес[ДАТА],\">=\"&$H20,Вес[ДАТА],\"<=\"&$I20),NA())","v":{"$error":"#N/A"}}]
[{"$f":"IF((LEN('Журнал снижения веса'!$C24)=0),TRUE)","v":true},{"$f":"IFERROR(IF(A21,0,IF(LEN('Журнал снижения веса'!$B24)=0,0,'Журнал снижения веса'!$B24)),\"\")","v":"00:00:00"},{"$f":"IFERROR(IF(A21,0,IF(LEN('Журнал снижения веса'!$C24)=0,0,'Журнал снижения веса'!$C24)),\"\")","v":0},{"$nulls":4},{"$error":"#N/A"},{"$error":"#N/A"},{"$f":"IFERROR(AVERAGEIFS(Вес[СНИЖЕНИЕ],Вес[ДАТА],\">=\"&$H21,Вес[ДАТА],\"<=\"&$I21),NA())","v":{"$error":"#N/A"}}]
[{"$f":"IF((LEN('Журнал снижения веса'!$C25)=0),TRUE)","v":true},{"$f":"IFERROR(IF(A22,0,IF(LEN('Журнал снижения веса'!$B25)=0,0,'Журнал снижения веса'!$B25)),\"\")","v":"00:00:00"},{"$f":"IFERROR(IF(A22,0,IF(LEN('Журнал снижения веса'!$C25)=0,0,'Журнал снижения веса'!$C25)),\"\")","v":0},{"$nulls":4},{"$error":"#N/A"},{"$error":"#N/A"},{"$f":"IFERROR(AVERAGEIFS(Вес[СНИЖЕНИЕ],Вес[ДАТА],\">=\"&$H22,Вес[ДАТА],\"<=\"&$I22),NA())","v":{"$error":"#N/A"}}]
[{"$f":"IF((LEN('Журнал снижения веса'!$C26)=0),TRUE)","v":true},{"$f":"IFERROR(IF(A23,0,IF(LEN('Журнал снижения веса'!$B26)=0,0,'Журнал снижения веса'!$B26)),\"\")","v":"00:00:00"},{"$f":"IFERROR(IF(A23,0,IF(LEN('Журнал снижения веса'!$C26)=0,0,'Журнал снижения веса'!$C26)),\"\")","v":0},{"$nulls":4},{"$error":"#N/A"},{"$error":"#N/A"},{"$f":"IFERROR(AVERAGEIFS(Вес[СНИЖЕНИЕ],Вес[ДАТА],\">=\"&$H23,Вес[ДАТА],\"<=\"&$I23),NA())","v":{"$error":"#N/A"}}]
[{"$f":"IF((LEN('Журнал снижения веса'!$C27)=0),TRUE)","v":true},{"$f":"IFERROR(IF(A24,0,IF(LEN('Журнал снижения веса'!$B27)=0,0,'Журнал снижения веса'!$B27)),\"\")","v":"00:00:00"},{"$f":"IFERROR(IF(A24,0,IF(LEN('Журнал снижения веса'!$C27)=0,0,'Журнал снижения веса'!$C27)),\"\")","v":0},{"$nulls":4},{"$error":"#N/A"},{"$error":"#N/A"},{"$f":"IFERROR(AVERAGEIFS(Вес[СНИЖЕНИЕ],Вес[ДАТА],\">=\"&$H24,Вес[ДАТА],\"<=\"&$I24),NA())","v":{"$error":"#N/A"}}]
[{"$f":"IF((LEN('Журнал снижения веса'!$C28)=0),TRUE)","v":true},{"$f":"IFERROR(IF(A25,0,IF(LEN('Журнал снижения веса'!$B28)=0,0,'Журнал снижения веса'!$B28)),\"\")","v":"00:00:00"},{"$f":"IFERROR(IF(A25,0,IF(LEN('Журнал снижения веса'!$C28)=0,0,'Журнал снижения веса'!$C28)),\"\")","v":0},{"$nulls":4},{"$error":"#N/A"},{"$error":"#N/A"},{"$f":"IFERROR(AVERAGEIFS(Вес[СНИЖЕНИЕ],Вес[ДАТА],\">=\"&$H25,Вес[ДАТА],\"<=\"&$I25),NA())","v":{"$error":"#N/A"}}]
[{"$f":"IF((LEN('Журнал снижения веса'!$C29)=0),TRUE)","v":true},{"$f":"IFERROR(IF(A26,0,IF(LEN('Журнал снижения веса'!$B29)=0,0,'Журнал снижения веса'!$B29)),\"\")","v":"00:00:00"},{"$f":"IFERROR(IF(A26,0,IF(LEN('Журнал снижения веса'!$C29)=0,0,'Журнал снижения веса'!$C29)),\"\")","v":0},{"$nulls":4},{"$error":"#N/A"},{"$error":"#N/A"},{"$f":"IFERROR(AVERAGEIFS(Вес[СНИЖЕНИЕ],Вес[ДАТА],\">=\"&$H26,Вес[ДАТА],\"<=\"&$I26),NA())","v":{"$error":"#N/A"}}]
[{"$f":"IF((LEN('Журнал снижения веса'!$C30)=0),TRUE)","v":true},{"$f":"IFERROR(IF(A27,0,IF(LEN('Журнал снижения веса'!$B30)=0,0,'Журнал снижения веса'!$B30)),\"\")","v":"00:00:00"},{"$f":"IFERROR(IF(A27,0,IF(LEN('Журнал снижения веса'!$C30)=0,0,'Журнал снижения веса'!$C30)),\"\")","v":0},{"$nulls":4},{"$error":"#N/A"},{"$error":"#N/A"},{"$f":"IFERROR(AVERAGEIFS(Вес[СНИЖЕНИЕ],Вес[ДАТА],\">=\"&$H27,Вес[ДАТА],\"<=\"&$I27),NA())","v":{"$error":"#N/A"}}]
[{"$f":"IF((LEN('Журнал снижения веса'!$C31)=0),TRUE)","v":true},{"$f":"IFERROR(IF(A28,0,IF(LEN('Журнал снижения веса'!$B31)=0,0,'Журнал снижения веса'!$B31)),\"\")","v":"00:00:00"},{"$f":"IFERROR(IF(A28,0,IF(LEN('Журнал снижения веса'!$C31)=0,0,'Журнал снижения веса'!$C31)),\"\")","v":0},{"$nulls":4},{"$error":"#N/A"},{"$error":"#N/A"},{"$f":"IFERROR(AVERAGEIFS(Вес[СНИЖЕНИЕ],Вес[ДАТА],\">=\"&$H28,Вес[ДАТА],\"<=\"&$I28),NA())","v":{"$error":"#N/A"}}]
[{"$f":"IF((LEN('Журнал снижения веса'!$C32)=0),TRUE)","v":true},{"$f":"IFERROR(IF(A29,0,IF(LEN('Журнал снижения веса'!$B32)=0,0,'Журнал снижения веса'!$B32)),\"\")","v":"00:00:00"},{"$f":"IFERROR(IF(A29,0,IF(LEN('Журнал снижения веса'!$C32)=0,0,'Журнал снижения веса'!$C32)),\"\")","v":0}]
[{"$f":"IF((LEN('Журнал снижения веса'!$C33)=0),TRUE)","v":true},{"$f":"IFERROR(IF(A30,0,IF(LEN('Журнал снижения веса'!$B33)=0,0,'Журнал снижения веса'!$B33)),\"\")","v":"00:00:00"},{"$f":"IFERROR(IF(A30,0,IF(LEN('Журнал снижения веса'!$C33)=0,0,'Журнал снижения веса'!$C33)),\"\")","v":0}]
[{"$f":"IF((LEN('Журнал снижения веса'!$C34)=0),TRUE)","v":true},{"$f":"IFERROR(IF(A31,0,IF(LEN('Журнал снижения веса'!$B34)=0,0,'Журнал снижения веса'!$B34)),\"\")","v":"00:00:00"},{"$f":"IFERROR(IF(A31,0,IF(LEN('Журнал снижения веса'!$C34)=0,0,'Журнал снижения веса'!$C34)),\"\")","v":0}]
[{"$f":"IF((LEN('Журнал снижения веса'!$C35)=0),TRUE)","v":true},{"$f":"IFERROR(IF(A32,0,IF(LEN('Журнал снижения веса'!$B35)=0,0,'Журнал снижения веса'!$B35)),\"\")","v":"00:00:00"},{"$f":"IFERROR(IF(A32,0,IF(LEN('Журнал снижения веса'!$C35)=0,0,'Журнал снижения веса'!$C35)),\"\")","v":0}]
[{"$f":"IF((LEN('Журнал снижения веса'!$C36)=0),TRUE)","v":true},{"$f":"IFERROR(IF(A33,0,IF(LEN('Журнал снижения веса'!$B36)=0,0,'Журнал снижения веса'!$B36)),\"\")","v":"00:00:00"},{"$f":"IFERROR(IF(A33,0,IF(LEN('Журнал снижения веса'!$C36)=0,0,'Журнал снижения веса'!$C36)),\"\")","v":0}]
[{"$f":"IF((LEN('Журнал снижения веса'!$C37)=0),TRUE)","v":true},{"$f":"IFERROR(IF(A34,0,IF(LEN('Журнал снижения веса'!$B37)=0,0,'Журнал снижения веса'!$B37)),\"\")","v":"00:00:00"},{"$f":"IFERROR(IF(A34,0,IF(LEN('Журнал снижения веса'!$C37)=0,0,'Журнал снижения веса'!$C37)),\"\")","v":0}]
[{"$f":"IF((LEN('Журнал снижения веса'!$C38)=0),TRUE)","v":true},{"$f":"IFERROR(IF(A35,0,IF(LEN('Журнал снижения веса'!$B38)=0,0,'Журнал снижения веса'!$B38)),\"\")","v":"00:00:00"},{"$f":"IFERROR(IF(A35,0,IF(LEN('Журнал снижения веса'!$C38)=0,0,'Журнал снижения веса'!$C38)),\"\")","v":0}]
[{"$f":"IF((LEN('Журнал снижения веса'!$C39)=0),TRUE)","v":true},{"$f":"IFERROR(IF(A36,0,IF(LEN('Журнал снижения веса'!$B39)=0,0,'Журнал снижения веса'!$B39)),\"\")","v":"00:00:00"},{"$f":"IFERROR(IF(A36,0,IF(LEN('Журнал снижения веса'!$C39)=0,0,'Журнал снижения веса'!$C39)),\"\")","v":0}]
[{"$f":"IF((LEN('Журнал снижения веса'!$C40)=0),TRUE)","v":true},{"$f":"IFERROR(IF(A37,0,IF(LEN('Журнал снижения веса'!$B40)=0,0,'Журнал снижения веса'!$B40)),\"\")","v":"00:00:00"},{"$f":"IFERROR(IF(A37,0,IF(LEN('Журнал снижения веса'!$C40)=0,0,'Журнал снижения веса'!$C40)),\"\")","v":0}]
[{"$f":"IF((LEN('Журнал снижения веса'!$C41)=0),TRUE)","v":true},{"$f":"IFERROR(IF(A38,0,IF(LEN('Журнал снижения веса'!$B41)=0,0,'Журнал снижения веса'!$B41)),\"\")","v":"00:00:00"},{"$f":"IFERROR(IF(A38,0,IF(LEN('Журнал снижения веса'!$C41)=0,0,'Журнал снижения веса'!$C41)),\"\")","v":0}]
[{"$f":"IF((LEN('Журнал снижения веса'!$C42)=0),TRUE)","v":true},{"$f":"IFERROR(IF(A39,0,IF(LEN('Журнал снижения веса'!$B42)=0,0,'Журнал снижения веса'!$B42)),\"\")","v":"00:00:00"},{"$f":"IFERROR(IF(A39,0,IF(LEN('Журнал снижения веса'!$C42)=0,0,'Журнал снижения веса'!$C42)),\"\")","v":0}]
[{"$f":"IF((LEN('Журнал снижения веса'!$C43)=0),TRUE)","v":true},{"$f":"IFERROR(IF(A40,0,IF(LEN('Журнал снижения веса'!$B43)=0,0,'Журнал снижения веса'!$B43)),\"\")","v":"00:00:00"},{"$f":"IFERROR(IF(A40,0,IF(LEN('Журнал снижения веса'!$C43)=0,0,'Журнал снижения веса'!$C43)),\"\")","v":0}]
[{"$f":"IF((LEN('Журнал снижения веса'!$C44)=0),TRUE)","v":true},{"$f":"IFERROR(IF(A41,0,IF(LEN('Журнал снижения веса'!$B44)=0,0,'Журнал снижения веса'!$B44)),\"\")","v":"00:00:00"},{"$f":"IFERROR(IF(A41,0,IF(LEN('Журнал снижения веса'!$C44)=0,0,'Журнал снижения веса'!$C44)),\"\")","v":0}]
[{"$f":"IF((LEN('Журнал снижения веса'!$C45)=0),TRUE)","v":true},{"$f":"IFERROR(IF(A42,0,IF(LEN('Журнал снижения веса'!$B45)=0,0,'Журнал снижения веса'!$B45)),\"\")","v":"00:00:00"},{"$f":"IFERROR(IF(A42,0,IF(LEN('Журнал снижения веса'!$C45)=0,0,'Журнал снижения веса'!$C45)),\"\")","v":0}]
[{"$f":"IF((LEN('Журнал снижения веса'!$C46)=0),TRUE)","v":true},{"$f":"IFERROR(IF(A43,0,IF(LEN('Журнал снижения веса'!$B46)=0,0,'Журнал снижения веса'!$B46)),\"\")","v":"00:00:00"},{"$f":"IFERROR(IF(A43,0,IF(LEN('Журнал снижения веса'!$C46)=0,0,'Журнал снижения веса'!$C46)),\"\")","v":0}]
[{"$f":"IF((LEN('Журнал снижения веса'!$C47)=0),TRUE)","v":true},{"$f":"IFERROR(IF(A44,0,IF(LEN('Журнал снижения веса'!$B47)=0,0,'Журнал снижения веса'!$B47)),\"\")","v":"00:00:00"},{"$f":"IFERROR(IF(A44,0,IF(LEN('Журнал снижения веса'!$C47)=0,0,'Журнал снижения веса'!$C47)),\"\")","v":0}]
[{"$f":"IF((LEN('Журнал снижения веса'!$C48)=0),TRUE)","v":true},{"$f":"IFERROR(IF(A45,0,IF(LEN('Журнал снижения веса'!$B48)=0,0,'Журнал снижения веса'!$B48)),\"\")","v":"00:00:00"},{"$f":"IFERROR(IF(A45,0,IF(LEN('Журнал снижения веса'!$C48)=0,0,'Журнал снижения веса'!$C48)),\"\")","v":0}]
[{"$f":"IF((LEN('Журнал снижения веса'!$C49)=0),TRUE)","v":true},{"$f":"IFERROR(IF(A46,0,IF(LEN('Журнал снижения веса'!$B49)=0,0,'Журнал снижения веса'!$B49)),\"\")","v":"00:00:00"},{"$f":"IFERROR(IF(A46,0,IF(LEN('Журнал снижения веса'!$C49)=0,0,'Журнал снижения веса'!$C49)),\"\")","v":0}]
[{"$f":"IF((LEN('Журнал снижения веса'!$C50)=0),TRUE)","v":true},{"$f":"IFERROR(IF(A47,0,IF(LEN('Журнал снижения веса'!$B50)=0,0,'Журнал снижения веса'!$B50)),\"\")","v":"00:00:00"},{"$f":"IFERROR(IF(A47,0,IF(LEN('Журнал снижения веса'!$C50)=0,0,'Журнал снижения веса'!$C50)),\"\")","v":0}]
[{"$f":"IF((LEN('Журнал снижения веса'!$C51)=0),TRUE)","v":true},{"$f":"IFERROR(IF(A48,0,IF(LEN('Журнал снижения веса'!$B51)=0,0,'Журнал снижения веса'!$B51)),\"\")","v":"00:00:00"},{"$f":"IFERROR(IF(A48,0,IF(LEN('Журнал снижения веса'!$C51)=0,0,'Журнал снижения веса'!$C51)),\"\")","v":0}]
[{"$f":"IF((LEN('Журнал снижения веса'!$C52)=0),TRUE)","v":true},{"$f":"IFERROR(IF(A49,0,IF(LEN('Журнал снижения веса'!$B52)=0,0,'Журнал снижения веса'!$B52)),\"\")","v":"00:00:00"},{"$f":"IFERROR(IF(A49,0,IF(LEN('Журнал снижения веса'!$C52)=0,0,'Журнал снижения веса'!$C52)),\"\")","v":0}]
[{"$f":"IF((LEN('Журнал снижения веса'!$C53)=0),TRUE)","v":true},{"$f":"IFERROR(IF(A50,0,IF(LEN('Журнал снижения веса'!$B53)=0,0,'Журнал снижения веса'!$B53)),\"\")","v":"00:00:00"},{"$f":"IFERROR(IF(A50,0,IF(LEN('Журнал снижения веса'!$C53)=0,0,'Журнал снижения веса'!$C53)),\"\")","v":0}]
[{"$f":"IF((LEN('Журнал снижения веса'!$C54)=0),TRUE)","v":true},{"$f":"IFERROR(IF(A51,0,IF(LEN('Журнал снижения веса'!$B54)=0,0,'Журнал снижения веса'!$B54)),\"\")","v":"00:00:00"},{"$f":"IFERROR(IF(A51,0,IF(LEN('Журнал снижения веса'!$C54)=0,0,'Журнал снижения веса'!$C54)),\"\")","v":0}]
[{"$f":"IF((LEN('Журнал снижения веса'!$C55)=0),TRUE)","v":true},{"$f":"IFERROR(IF(A52,0,IF(LEN('Журнал снижения веса'!$B55)=0,0,'Журнал снижения веса'!$B55)),\"\")","v":"00:00:00"},{"$f":"IFERROR(IF(A52,0,IF(LEN('Журнал снижения веса'!$C55)=0,0,'Журнал снижения веса'!$C55)),\"\")","v":0}]
[{"$f":"IF((LEN('Журнал снижения веса'!$C56)=0),TRUE)","v":true},{"$f":"IFERROR(IF(A53,0,IF(LEN('Журнал снижения веса'!$B56)=0,0,'Журнал снижения веса'!$B56)),\"\")","v":"00:00:00"},{"$f":"IFERROR(IF(A53,0,IF(LEN('Журнал снижения веса'!$C56)=0,0,'Журнал снижения веса'!$C56)),\"\")","v":0}]
[{"$f":"IF((LEN('Журнал снижения веса'!$C57)=0),TRUE)","v":true},{"$f":"IFERROR(IF(A54,0,IF(LEN('Журнал снижения веса'!$B57)=0,0,'Журнал снижения веса'!$B57)),\"\")","v":"00:00:00"},{"$f":"IFERROR(IF(A54,0,IF(LEN('Журнал снижения веса'!$C57)=0,0,'Журнал снижения веса'!$C57)),\"\")","v":0}]
[{"$f":"IF((LEN('Журнал снижения веса'!$C58)=0),TRUE)","v":true},{"$f":"IFERROR(IF(A55,0,IF(LEN('Журнал снижения веса'!$B58)=0,0,'Журнал снижения веса'!$B58)),\"\")","v":"00:00:00"},{"$f":"IFERROR(IF(A55,0,IF(LEN('Журнал снижения веса'!$C58)=0,0,'Журнал снижения веса'!$C58)),\"\")","v":0}]
[{"$f":"IF((LEN('Журнал снижения веса'!$C59)=0),TRUE)","v":true},{"$f":"IFERROR(IF(A56,0,IF(LEN('Журнал снижения веса'!$B59)=0,0,'Журнал снижения веса'!$B59)),\"\")","v":"00:00:00"},{"$f":"IFERROR(IF(A56,0,IF(LEN('Журнал снижения веса'!$C59)=0,0,'Журнал снижения веса'!$C59)),\"\")","v":0}]
[{"$f":"IF((LEN('Журнал снижения веса'!$C60)=0),TRUE)","v":true},{"$f":"IFERROR(IF(A57,0,IF(LEN('Журнал снижения веса'!$B60)=0,0,'Журнал снижения веса'!$B60)),\"\")","v":"00:00:00"},{"$f":"IFERROR(IF(A57,0,IF(LEN('Журнал снижения веса'!$C60)=0,0,'Журнал снижения веса'!$C60)),\"\")","v":0}]
[{"$f":"IF((LEN('Журнал снижения веса'!$C61)=0),TRUE)","v":true},{"$f":"IFERROR(IF(A58,0,IF(LEN('Журнал снижения веса'!$B61)=0,0,'Журнал снижения веса'!$B61)),\"\")","v":"00:00:00"},{"$f":"IFERROR(IF(A58,0,IF(LEN('Журнал снижения веса'!$C61)=0,0,'Журнал снижения веса'!$C61)),\"\")","v":0}]
[{"$f":"IF((LEN('Журнал снижения веса'!$C62)=0),TRUE)","v":true},{"$f":"IFERROR(IF(A59,0,IF(LEN('Журнал снижения веса'!$B62)=0,0,'Журнал снижения веса'!$B62)),\"\")","v":"00:00:00"},{"$f":"IFERROR(IF(A59,0,IF(LEN('Журнал снижения веса'!$C62)=0,0,'Журнал снижения веса'!$C62)),\"\")","v":0}]
[{"$f":"IF((LEN('Журнал снижения веса'!$C63)=0),TRUE)","v":true},{"$f":"IFERROR(IF(A60,0,IF(LEN('Журнал снижения веса'!$B63)=0,0,'Журнал снижения веса'!$B63)),\"\")","v":"00:00:00"},{"$f":"IFERROR(IF(A60,0,IF(LEN('Журнал снижения веса'!$C63)=0,0,'Журнал снижения веса'!$C63)),\"\")","v":0}]
[{"$f":"IF((LEN('Журнал снижения веса'!$C64)=0),TRUE)","v":true},{"$f":"IFERROR(IF(A61,0,IF(LEN('Журнал снижения веса'!$B64)=0,0,'Журнал снижения веса'!$B64)),\"\")","v":"00:00:00"},{"$f":"IFERROR(IF(A61,0,IF(LEN('Журнал снижения веса'!$C64)=0,0,'Журнал снижения веса'!$C64)),\"\")","v":0}]
[{"$f":"IF((LEN('Журнал снижения веса'!$C65)=0),TRUE)","v":true},{"$f":"IFERROR(IF(A62,0,IF(LEN('Журнал снижения веса'!$B65)=0,0,'Журнал снижения веса'!$B65)),\"\")","v":"00:00:00"},{"$f":"IFERROR(IF(A62,0,IF(LEN('Журнал снижения веса'!$C65)=0,0,'Журнал снижения веса'!$C65)),\"\")","v":0}]
[{"$f":"IF((LEN('Журнал снижения веса'!$C66)=0),TRUE)","v":true},{"$f":"IFERROR(IF(A63,0,IF(LEN('Журнал снижения веса'!$B66)=0,0,'Журнал снижения веса'!$B66)),\"\")","v":"00:00:00"},{"$f":"IFERROR(IF(A63,0,IF(LEN('Журнал снижения веса'!$C66)=0,0,'Журнал снижения веса'!$C66)),\"\")","v":0}]
[{"$f":"IF((LEN('Журнал снижения веса'!$C67)=0),TRUE)","v":true},{"$f":"IFERROR(IF(A64,0,IF(LEN('Журнал снижения веса'!$B67)=0,0,'Журнал снижения веса'!$B67)),\"\")","v":"00:00:00"},{"$f":"IFERROR(IF(A64,0,IF(LEN('Журнал снижения веса'!$C67)=0,0,'Журнал снижения веса'!$C67)),\"\")","v":0}]
[{"$f":"IF((LEN('Журнал снижения веса'!$C68)=0),TRUE)","v":true},{"$f":"IFERROR(IF(A65,0,IF(LEN('Журнал снижения веса'!$B68)=0,0,'Журнал снижения веса'!$B68)),\"\")","v":"00:00:00"},{"$f":"IFERROR(IF(A65,0,IF(LEN('Журнал снижения веса'!$C68)=0,0,'Журнал снижения веса'!$C68)),\"\")","v":0}]
[{"$f":"IF((LEN('Журнал снижения веса'!$C69)=0),TRUE)","v":true},{"$f":"IFERROR(IF(A66,0,IF(LEN('Журнал снижения веса'!$B69)=0,0,'Журнал снижения веса'!$B69)),\"\")","v":"00:00:00"},{"$f":"IFERROR(IF(A66,0,IF(LEN('Журнал снижения веса'!$C69)=0,0,'Журнал снижения веса'!$C69)),\"\")","v":0}]
[{"$f":"IF((LEN('Журнал снижения веса'!$C70)=0),TRUE)","v":true},{"$f":"IFERROR(IF(A67,0,IF(LEN('Журнал снижения веса'!$B70)=0,0,'Журнал снижения веса'!$B70)),\"\")","v":"00:00:00"},{"$f":"IFERROR(IF(A67,0,IF(LEN('Журнал снижения веса'!$C70)=0,0,'Журнал снижения веса'!$C70)),\"\")","v":0}]
[{"$f":"IF((LEN('Журнал снижения веса'!$C71)=0),TRUE)","v":true},{"$f":"IFERROR(IF(A68,0,IF(LEN('Журнал снижения веса'!$B71)=0,0,'Журнал снижения веса'!$B71)),\"\")","v":"00:00:00"},{"$f":"IFERROR(IF(A68,0,IF(LEN('Журнал снижения веса'!$C71)=0,0,'Журнал снижения веса'!$C71)),\"\")","v":0}]
[{"$f":"IF((LEN('Журнал снижения веса'!$C72)=0),TRUE)","v":true},{"$f":"IFERROR(IF(A69,0,IF(LEN('Журнал снижения веса'!$B72)=0,0,'Журнал снижения веса'!$B72)),\"\")","v":"00:00:00"},{"$f":"IFERROR(IF(A69,0,IF(LEN('Журнал снижения веса'!$C72)=0,0,'Журнал снижения веса'!$C72)),\"\")","v":0}]
[{"$f":"IF((LEN('Журнал снижения веса'!$C73)=0),TRUE)","v":true},{"$f":"IFERROR(IF(A70,0,IF(LEN('Журнал снижения веса'!$B73)=0,0,'Журнал снижения веса'!$B73)),\"\")","v":"00:00:00"},{"$f":"IFERROR(IF(A70,0,IF(LEN('Журнал снижения веса'!$C73)=0,0,'Журнал снижения веса'!$C73)),\"\")","v":0}]
[{"$f":"IF((LEN('Журнал снижения веса'!$C74)=0),TRUE)","v":true},{"$f":"IFERROR(IF(A71,0,IF(LEN('Журнал снижения веса'!$B74)=0,0,'Журнал снижения веса'!$B74)),\"\")","v":"00:00:00"},{"$f":"IFERROR(IF(A71,0,IF(LEN('Журнал снижения веса'!$C74)=0,0,'Журнал снижения веса'!$C74)),\"\")","v":0}]
[{"$f":"IF((LEN('Журнал снижения веса'!$C75)=0),TRUE)","v":true},{"$f":"IFERROR(IF(A72,0,IF(LEN('Журнал снижения веса'!$B75)=0,0,'Журнал снижения веса'!$B75)),\"\")","v":"00:00:00"},{"$f":"IFERROR(IF(A72,0,IF(LEN('Журнал снижения веса'!$C75)=0,0,'Журнал снижения веса'!$C75)),\"\")","v":0}]
[{"$f":"IF((LEN('Журнал снижения веса'!$C76)=0),TRUE)","v":true},{"$f":"IFERROR(IF(A73,0,IF(LEN('Журнал снижения веса'!$B76)=0,0,'Журнал снижения веса'!$B76)),\"\")","v":"00:00:00"},{"$f":"IFERROR(IF(A73,0,IF(LEN('Журнал снижения веса'!$C76)=0,0,'Журнал снижения веса'!$C76)),\"\")","v":0}]
[{"$f":"IF((LEN('Журнал снижения веса'!$C77)=0),TRUE)","v":true},{"$f":"IFERROR(IF(A74,0,IF(LEN('Журнал снижения веса'!$B77)=0,0,'Журнал снижения веса'!$B77)),\"\")","v":"00:00:00"},{"$f":"IFERROR(IF(A74,0,IF(LEN('Журнал снижения веса'!$C77)=0,0,'Журнал снижения веса'!$C77)),\"\")","v":0}]
[{"$f":"IF((LEN('Журнал снижения веса'!$C78)=0),TRUE)","v":true},{"$f":"IFERROR(IF(A75,0,IF(LEN('Журнал снижения веса'!$B78)=0,0,'Журнал снижения веса'!$B78)),\"\")","v":"00:00:00"},{"$f":"IFERROR(IF(A75,0,IF(LEN('Журнал снижения веса'!$C78)=0,0,'Журнал снижения веса'!$C78)),\"\")","v":0}]
[{"$f":"IF((LEN('Журнал снижения веса'!$C79)=0),TRUE)","v":true},{"$f":"IFERROR(IF(A76,0,IF(LEN('Журнал снижения веса'!$B79)=0,0,'Журнал снижения веса'!$B79)),\"\")","v":"00:00:00"},{"$f":"IFERROR(IF(A76,0,IF(LEN('Журнал снижения веса'!$C79)=0,0,'Журнал снижения веса'!$C79)),\"\")","v":0}]
[{"$f":"IF((LEN('Журнал снижения веса'!$C80)=0),TRUE)","v":true},{"$f":"IFERROR(IF(A77,0,IF(LEN('Журнал снижения веса'!$B80)=0,0,'Журнал снижения веса'!$B80)),\"\")","v":"00:00:00"},{"$f":"IFERROR(IF(A77,0,IF(LEN('Журнал снижения веса'!$C80)=0,0,'Журнал снижения веса'!$C80)),\"\")","v":0}]
[{"$f":"IF((LEN('Журнал снижения веса'!$C81)=0),TRUE)","v":true},{"$f":"IFERROR(IF(A78,0,IF(LEN('Журнал снижения веса'!$B81)=0,0,'Журнал снижения веса'!$B81)),\"\")","v":"00:00:00"},{"$f":"IFERROR(IF(A78,0,IF(LEN('Журнал снижения веса'!$C81)=0,0,'Журнал снижения веса'!$C81)),\"\")","v":0}]
[{"$f":"IF((LEN('Журнал снижения веса'!$C82)=0),TRUE)","v":true},{"$f":"IFERROR(IF(A79,0,IF(LEN('Журнал снижения веса'!$B82)=0,0,'Журнал снижения веса'!$B82)),\"\")","v":"00:00:00"},{"$f":"IFERROR(IF(A79,0,IF(LEN('Журнал снижения веса'!$C82)=0,0,'Журнал снижения веса'!$C82)),\"\")","v":0}]
[{"$f":"IF((LEN('Журнал снижения веса'!$C83)=0),TRUE)","v":true},{"$f":"IFERROR(IF(A80,0,IF(LEN('Журнал снижения веса'!$B83)=0,0,'Журнал снижения веса'!$B83)),\"\")","v":"00:00:00"},{"$f":"IFERROR(IF(A80,0,IF(LEN('Журнал снижения веса'!$C83)=0,0,'Журнал снижения веса'!$C83)),\"\")","v":0}]
[{"$f":"IF((LEN('Журнал снижения веса'!$C84)=0),TRUE)","v":true},{"$f":"IFERROR(IF(A81,0,IF(LEN('Журнал снижения веса'!$B84)=0,0,'Журнал снижения веса'!$B84)),\"\")","v":"00:00:00"},{"$f":"IFERROR(IF(A81,0,IF(LEN('Журнал снижения веса'!$C84)=0,0,'Журнал снижения веса'!$C84)),\"\")","v":0}]
[{"$f":"IF((LEN('Журнал снижения веса'!$C85)=0),TRUE)","v":true},{"$f":"IFERROR(IF(A82,0,IF(LEN('Журнал снижения веса'!$B85)=0,0,'Журнал снижения веса'!$B85)),\"\")","v":"00:00:00"},{"$f":"IFERROR(IF(A82,0,IF(LEN('Журнал снижения веса'!$C85)=0,0,'Журнал снижения веса'!$C85)),\"\")","v":0}]
[{"$f":"IF((LEN('Журнал снижения веса'!$C86)=0),TRUE)","v":true},{"$f":"IFERROR(IF(A83,0,IF(LEN('Журнал снижения веса'!$B86)=0,0,'Журнал снижения веса'!$B86)),\"\")","v":"00:00:00"},{"$f":"IFERROR(IF(A83,0,IF(LEN('Журнал снижения веса'!$C86)=0,0,'Журнал снижения веса'!$C86)),\"\")","v":0}]
[{"$f":"IF((LEN('Журнал снижения веса'!$C87)=0),TRUE)","v":true},{"$f":"IFERROR(IF(A84,0,IF(LEN('Журнал снижения веса'!$B87)=0,0,'Журнал снижения веса'!$B87)),\"\")","v":"00:00:00"},{"$f":"IFERROR(IF(A84,0,IF(LEN('Журнал снижения веса'!$C87)=0,0,'Журнал снижения веса'!$C87)),\"\")","v":0}]
[{"$f":"IF((LEN('Журнал снижения веса'!$C88)=0),TRUE)","v":true},{"$f":"IFERROR(IF(A85,0,IF(LEN('Журнал снижения веса'!$B88)=0,0,'Журнал снижения веса'!$B88)),\"\")","v":"00:00:00"},{"$f":"IFERROR(IF(A85,0,IF(LEN('Журнал снижения веса'!$C88)=0,0,'Журнал снижения веса'!$C88)),\"\")","v":0}]
[{"$f":"IF((LEN('Журнал снижения веса'!$C89)=0),TRUE)","v":true},{"$f":"IFERROR(IF(A86,0,IF(LEN('Журнал снижения веса'!$B89)=0,0,'Журнал снижения веса'!$B89)),\"\")","v":"00:00:00"},{"$f":"IFERROR(IF(A86,0,IF(LEN('Журнал снижения веса'!$C89)=0,0,'Журнал снижения веса'!$C89)),\"\")","v":0}]
[{"$f":"IF((LEN('Журнал снижения веса'!$C90)=0),TRUE)","v":true},{"$f":"IFERROR(IF(A87,0,IF(LEN('Журнал снижения веса'!$B90)=0,0,'Журнал снижения веса'!$B90)),\"\")","v":"00:00:00"},{"$f":"IFERROR(IF(A87,0,IF(LEN('Журнал снижения веса'!$C90)=0,0,'Журнал снижения веса'!$C90)),\"\")","v":0}]
[{"$f":"IF((LEN('Журнал снижения веса'!$C91)=0),TRUE)","v":true},{"$f":"IFERROR(IF(A88,0,IF(LEN('Журнал снижения веса'!$B91)=0,0,'Журнал снижения веса'!$B91)),\"\")","v":"00:00:00"},{"$f":"IFERROR(IF(A88,0,IF(LEN('Журнал снижения веса'!$C91)=0,0,'Журнал снижения веса'!$C91)),\"\")","v":0}]
[{"$f":"IF((LEN('Журнал снижения веса'!$C92)=0),TRUE)","v":true},{"$f":"IFERROR(IF(A89,0,IF(LEN('Журнал снижения веса'!$B92)=0,0,'Журнал снижения веса'!$B92)),\"\")","v":"00:00:00"},{"$f":"IFERROR(IF(A89,0,IF(LEN('Журнал снижения веса'!$C92)=0,0,'Журнал снижения веса'!$C92)),\"\")","v":0}]
[{"$f":"IF((LEN('Журнал снижения веса'!$C93)=0),TRUE)","v":true},{"$f":"IFERROR(IF(A90,0,IF(LEN('Журнал снижения веса'!$B93)=0,0,'Журнал снижения веса'!$B93)),\"\")","v":"00:00:00"},{"$f":"IFERROR(IF(A90,0,IF(LEN('Журнал снижения веса'!$C93)=0,0,'Журнал снижения веса'!$C93)),\"\")","v":0}]
[{"$f":"IF((LEN('Журнал снижения веса'!$C94)=0),TRUE)","v":true},{"$f":"IFERROR(IF(A91,0,IF(LEN('Журнал снижения веса'!$B94)=0,0,'Журнал снижения веса'!$B94)),\"\")","v":"00:00:00"},{"$f":"IFERROR(IF(A91,0,IF(LEN('Журнал снижения веса'!$C94)=0,0,'Журнал снижения веса'!$C94)),\"\")","v":0}]
[{"$f":"IF((LEN('Журнал снижения веса'!$C95)=0),TRUE)","v":true},{"$f":"IFERROR(IF(A92,0,IF(LEN('Журнал снижения веса'!$B95)=0,0,'Журнал снижения веса'!$B95)),\"\")","v":"00:00:00"},{"$f":"IFERROR(IF(A92,0,IF(LEN('Журнал снижения веса'!$C95)=0,0,'Журнал снижения веса'!$C95)),\"\")","v":0}]
[{"$f":"IF((LEN('Журнал снижения веса'!$C96)=0),TRUE)","v":true},{"$f":"IFERROR(IF(A93,0,IF(LEN('Журнал снижения веса'!$B96)=0,0,'Журнал снижения веса'!$B96)),\"\")","v":"00:00:00"},{"$f":"IFERROR(IF(A93,0,IF(LEN('Журнал снижения веса'!$C96)=0,0,'Журнал снижения веса'!$C96)),\"\")","v":0}]
[{"$f":"IF((LEN('Журнал снижения веса'!$C97)=0),TRUE)","v":true},{"$f":"IFERROR(IF(A94,0,IF(LEN('Журнал снижения веса'!$B97)=0,0,'Журнал снижения веса'!$B97)),\"\")","v":"00:00:00"},{"$f":"IFERROR(IF(A94,0,IF(LEN('Журнал снижения веса'!$C97)=0,0,'Журнал снижения веса'!$C97)),\"\")","v":0}]
[{"$f":"IF((LEN('Журнал снижения веса'!$C98)=0),TRUE)","v":true},{"$f":"IFERROR(IF(A95,0,IF(LEN('Журнал снижения веса'!$B98)=0,0,'Журнал снижения веса'!$B98)),\"\")","v":"00:00:00"},{"$f":"IFERROR(IF(A95,0,IF(LEN('Журнал снижения веса'!$C98)=0,0,'Журнал снижения веса'!$C98)),\"\")","v":0}]
[{"$f":"IF((LEN('Журнал снижения веса'!$C99)=0),TRUE)","v":true},{"$f":"IFERROR(IF(A96,0,IF(LEN('Журнал снижения веса'!$B99)=0,0,'Журнал снижения веса'!$B99)),\"\")","v":"00:00:00"},{"$f":"IFERROR(IF(A96,0,IF(LEN('Журнал снижения веса'!$C99)=0,0,'Журнал снижения веса'!$C99)),\"\")","v":0}]
[{"$f":"IF((LEN('Журнал снижения веса'!$C100)=0),TRUE)","v":true},{"$f":"IFERROR(IF(A97,0,IF(LEN('Журнал снижения веса'!$B100)=0,0,'Журнал снижения веса'!$B100)),\"\")","v":"00:00:00"},{"$f":"IFERROR(IF(A97,0,IF(LEN('Журнал снижения веса'!$C100)=0,0,'Журнал снижения веса'!$C100)),\"\")","v":0}]
[{"$f":"IF((LEN('Журнал снижения веса'!$C101)=0),TRUE)","v":true},{"$f":"IFERROR(IF(A98,0,IF(LEN('Журнал снижения веса'!$B101)=0,0,'Журнал снижения веса'!$B101)),\"\")","v":"00:00:00"},{"$f":"IFERROR(IF(A98,0,IF(LEN('Журнал снижения веса'!$C101)=0,0,'Журнал снижения веса'!$C101)),\"\")","v":0}]
[{"$f":"IF((LEN('Журнал снижения веса'!$C102)=0),TRUE)","v":true},{"$f":"IFERROR(IF(A99,0,IF(LEN('Журнал снижения веса'!$B102)=0,0,'Журнал снижения веса'!$B102)),\"\")","v":"00:00:00"},{"$f":"IFERROR(IF(A99,0,IF(LEN('Журнал снижения веса'!$C102)=0,0,'Журнал снижения веса'!$C102)),\"\")","v":0}]
[{"$f":"IF((LEN('Журнал снижения веса'!$C103)=0),TRUE)","v":true},{"$f":"IFERROR(IF(A100,0,IF(LEN('Журнал снижения веса'!$B103)=0,0,'Журнал снижения веса'!$B103)),\"\")","v":"00:00:00"},{"$f":"IFERROR(IF(A100,0,IF(LEN('Журнал снижения веса'!$C103)=0,0,'Журнал снижения веса'!$C103)),\"\")","v":0}]
[{"$f":"IF((LEN('Журнал снижения веса'!$C104)=0),TRUE)","v":true},{"$f":"IFERROR(IF(A101,0,IF(LEN('Журнал снижения веса'!$B104)=0,0,'Журнал снижения веса'!$B104)),\"\")","v":"00:00:00"},{"$f":"IFERROR(IF(A101,0,IF(LEN('Журнал снижения веса'!$C104)=0,0,'Журнал снижения веса'!$C104)),\"\")","v":0}]
[{"$f":"IF((LEN('Журнал снижения веса'!$C105)=0),TRUE)","v":true},{"$f":"IFERROR(IF(A102,0,IF(LEN('Журнал снижения веса'!$B105)=0,0,'Журнал снижения веса'!$B105)),\"\")","v":"00:00:00"},{"$f":"IFERROR(IF(A102,0,IF(LEN('Журнал снижения веса'!$C105)=0,0,'Журнал снижения веса'!$C105)),\"\")","v":0}]
[{"$f":"IF((LEN('Журнал снижения веса'!$C106)=0),TRUE)","v":true},{"$f":"IFERROR(IF(A103,0,IF(LEN('Журнал снижения веса'!$B106)=0,0,'Журнал снижения веса'!$B106)),\"\")","v":"00:00:00"},{"$f":"IFERROR(IF(A103,0,IF(LEN('Журнал снижения веса'!$C106)=0,0,'Журнал снижения веса'!$C106)),\"\")","v":0}]
[{"$f":"IF((LEN('Журнал снижения веса'!$C107)=0),TRUE)","v":true},{"$f":"IFERROR(IF(A104,0,IF(LEN('Журнал снижения веса'!$B107)=0,0,'Журнал снижения веса'!$B107)),\"\")","v":"00:00:00"},{"$f":"IFERROR(IF(A104,0,IF(LEN('Журнал снижения веса'!$C107)=0,0,'Журнал снижения веса'!$C107)),\"\")","v":0}]
[{"$f":"IF((LEN('Журнал снижения веса'!$C108)=0),TRUE)","v":true},{"$f":"IFERROR(IF(A105,0,IF(LEN('Журнал снижения веса'!$B108)=0,0,'Журнал снижения веса'!$B108)),\"\")","v":"00:00:00"},{"$f":"IFERROR(IF(A105,0,IF(LEN('Журнал снижения веса'!$C108)=0,0,'Журнал снижения веса'!$C108)),\"\")","v":0}]
[{"$f":"IF((LEN('Журнал снижения веса'!$C109)=0),TRUE)","v":true},{"$f":"IFERROR(IF(A106,0,IF(LEN('Журнал снижения веса'!$B109)=0,0,'Журнал снижения веса'!$B109)),\"\")","v":"00:00:00"},{"$f":"IFERROR(IF(A106,0,IF(LEN('Журнал снижения веса'!$C109)=0,0,'Журнал снижения веса'!$C109)),\"\")","v":0}]
[{"$f":"IF((LEN('Журнал снижения веса'!$C110)=0),TRUE)","v":true},{"$f":"IFERROR(IF(A107,0,IF(LEN('Журнал снижения веса'!$B110)=0,0,'Журнал снижения веса'!$B110)),\"\")","v":"00:00:00"},{"$f":"IFERROR(IF(A107,0,IF(LEN('Журнал снижения веса'!$C110)=0,0,'Журнал снижения веса'!$C110)),\"\")","v":0}]